Cogmind - Beta 15 @@@ ROGUE MODE // 2025.10.14 @ 02:31:17 Player: Veggiepits Result: Destroyed by as-11195 with Assembled Heavy Rifle Performance ------------- Evolutions (0) 0 Regions Visited (2) 400 Robots Destroyed (2) 10 Value Destroyed (68) 68 Prototype IDs (0) 0 Alien Tech Used (0) 0 Bonus (0) 0 TOTAL SCORE: 478 Bonus ------- None Cogmind --------- Core Integrity 0/250 Matter 198/300 Energy 87/100 System Corruption 3% Temperature Cool (0) Movement Core (100) Ox1 Location -10/Mines Parts ------- > --- POWER (1) -------- (None) > --- PROPULSION (2) --- (None) > --- UTILITY (2) ------ Small Storage Unit > --- WEAPON (2) ------- (None) > --- INVENTORY (8) ---- (None) Peak State ------------ > --- POWER ------------ Ion Engine > --- PROPULSION ------- Aluminum Leg Aluminum Leg > --- UTILITY ---------- Small Storage Unit > --- WEAPON ----------- Medium Laser Medium Laser > --- INVENTORY -------- (None) [Rating: 6] Favorites ----------- Power Ion Engine Engine Ion Engine Propulsion Aluminum Leg Leg Aluminum Leg Hover Unit Hover Unit Utility Small Storage Unit Device Structural Scanner Storage Small Storage Unit Weapon Medium Laser Energy Gun Medium Laser Build | -11 -10 -10 ------- Run | Yrd Mat Min Slots Evolved . | . . . Power . | . . . Propulsion . | . . . Utility . | . . . Weapon . | . . . Parts Attached 8 | 6 2 . Power 1 | 1 . . Engine 1 | 1 . . Core . | . . . Reactor . | . . . Propulsion 3 | 2 1 . Treads . | . . . Leg 2 | 2 . . Wheel . | . . . Hover 1 | . 1 . Flight . | . . . Utility 2 | 1 1 . Device 1 | . 1 . Storage 1 | 1 . . Processor . | . . . Hackware . | . . . Protection . | . . . Artifact . | . . . Weapon 2 | 2 . . Energy Gun 2 | 2 . . Energy Cannon . | . . . Ballistic Gun . | . . . Ballistic Cannon . | . . . Launcher . | . . . Special Weapon . | . . . Impact Weapon . | . . . Slashing Weapon . | . . . Piercing Weapon . | . . . Special Melee Weapon . | . . . Unidentified Prototypes . | . . . Parts Lost 4 | . . 4 Power 1 | . . 1 Propulsion 1 | . . 1 Utility 1 | . . 1 Weapon 1 | . . 1 Highest Loss Streak 4 | . . 4 To Critical Strikes . | . . . Average Backups . | 1 . . Power . | . . . Propulsion . | . . . Utility . | . . . Weapon . | . . . Tool/Special . | . . . Unused Backups 2 | . 2 . Power . | . . . Propulsion 2 | . 2 . Utility . | . . . Weapon . | . . . Tool/Special . | . . . Average Slot Usage (%) 72 | . 73 68 Engine 13 | . 14 11 Leg 11 | . 13 . Hover 8 | . 7 14 Device 4 | . 2 14 Storage 14 | . 14 14 Energy Gun 19 | . 21 14 Peak Build Rating 6 | 6 6 5 Average Rating 4 | 4 5 4 On Entrance 3 | . 6 5 Naked Turns . | . . . Heaviest Build 14 | 14 14 13 Greatest Support 20 | 20 20 6 Greatest Overweight (x) 2 | . 2 2 Average Overweight (x) . | . . 1 Largest Inventory Capacity 8 | 8 8 8 Average Capacity 7 | 6 8 8 Most Carried 3 | 3 2 . Average Carried . | . . . Final Capacity 8 | 8 8 8 Final Carried 2 | 2 . . Class Distribution -------------------- 100% | Mutant Dominant Class ---------------- Mutant | -10/Materials Mutant | -10/Mines Resources | -11 -10 -10 ----------- Run | Yrd Mat Min Matter Collected 166 | 90 76 . Remotely . | . . . Salvage Created 76 | . 76 . Parts 2 | . 2 . Haulers Intercepted . | . . . Recyclers Shooed . | . . . Parts Field Recycled . | . . . Retrieved Matter . | . . . Parts Self-Destructed . | . . . Prevented . | . . . Kills | -11 -10 -10 ------- Run | Yrd Mat Min Combat Hostiles Destroyed 2 | . 2 . Guns 1 | . 1 . Classes Destroyed 1 | . 1 . Grunt 2 | . 2 . Best Kill Streak 2 | . 2 . Combat Bots Only 2 | . 2 . Max Kills in Single Turn 1 | . 1 . Gunslinging . | . . . Exploded . | . . . Melee . | . . . Uniques/NPCs Destroyed . | . . . Combat | -11 -10 -10 -------- Run | Yrd Mat Min Hostile Shots Fired 57 | . 40 17 Missed 13 | . 9 4 Hits 44 | . 31 13 Projectile 44 | . 31 13 Damage Taken 612 | . 426 186 Core 251 | . 174 77 Absorbed by Shields . | . . . Core Remaining (%) 100 | 100 . . Volleys Fired 21 | . 14 7 Largest 2 | . 2 1 Hottest 100 | . 100 50 Shots Fired 35 | . 28 7 Gun 35 | . 28 7 Cannon . | . . . Launcher . | . . . Special . | . . . Kinetic . | . . . Thermal 35 | . 28 7 Explosive . | . . . Electromagnetic . | . . . Robot Hit Streak 6 | . 6 2 Robot Miss Streak 5 | . 4 5 Penetration Max . | . . . Secondary Targets 1 | . 1 . Max Gunslinging Chain 1 | . 1 . Shots Hit Robots 18 | . 16 2 Core Hits 5 | . 3 2 Critical Kills . | . . . Critical Parts Destroyed . | . . . Critical Strikes 3 | . 2 1 Burn 3 | . 2 1 Melee Attacks . | . . . Impact . | . . . Slashing . | . . . Piercing . | . . . Sneak Attacks . | . . . Combat Hostiles . | . . . Follow-up Attacks . | . . . Damage Inflicted 263 | . 199 64 Guns 263 | . 199 64 Cannons . | . . . Explosions . | . . . Melee . | . . . Ramming . | . . . Kinetic . | . . . Thermal 263 | . 199 64 Explosive . | . . . Electromagnetic . | . . . Impact . | . . . Slashing . | . . . Piercing . | . . . Highest Corruption 3 | . 3 3 Average Corruption 2 | . 2 3 Corruption Purged . | . . . Corruption Blocked . | . . . Effects 5 | . 3 2 Message Errors 2 | . 2 . Matter Fused 1 | . . 1 Heat Flow Errors 1 | . . 1 Data Loss (minor) 1 | . 1 . Overload Shots . | . . . Overflow Damage . | . . . Projectiles . | . . . Explosions . | . . . Melee . | . . . Knockbacks . | . . . Impact . | . . . Kinetic . | . . . Secondary . | . . . Self-Inflicted Damage . | . . . Shots . | . . . Rammed . | . . . Targets Rammed . | . . . Kicked . | . . . Crushed . | . . . Highest Temperature 559 | . 559 194 Average Temperature 202 | . 251 54 Received Heat Transfer 186 | . 186 . Effects 14 | . 14 . Shutdowns 2 | . 2 . Energy Bleed 2 | . 2 . Interference 1 | . 1 . Damage (minor) 1 | . 1 . Damage (major) 6 | . 6 . Damage (core) 2 | . 2 . Siege Activations . | . . . Martial Activations . | . . . Shielding Activations . | . . . Robots Disrupted . | . . . Combat Hostiles . | . . . Robots Corrupted . | . . . Combat Hostiles . | . . . Parts Fried . | . . . Impact Corruptions . | . . . Robots Melted 1 | . 1 . Combat Hostiles 1 | . 1 . Parts Melted 4 | . 4 . Heat Transferred 999 | . 740 259 Parts Sabotaged . | . . . Parts Stolen . | . . . Parts Stripped . | . . . Power Chain Reactions . | . . . Alert | -11 -10 -10 ------- Run | Yrd Mat Min Maximum Alert Level . | . . . Low Security (%) 100 | 100 100 100 Level 1 . | . . . Level 2 . | . . . Level 3 . | . . . Level 4 . | . . . Level 5 . | . . . High Security . | . . . Max Security . | . . . Peak Influence 40 | . 40 . Initial . | . . . Average 4 | . 6 . Influence Increases 48 | . 48 . Destroy 0b10 Robot/C 40 | . 40 . Successful Hack 8 | . 8 . Influence Decreases 48 | . 48 . Time Decay 48 | . 48 . Squads Dispatched 1 | . 1 . Investigation 1 | . 1 . Extermination . | . . . Reinforcement . | . . . Assault . | . . . Garrison . | . . . Intercept . | . . . Searches Triggered . | . . . Construction Impeded . | . . . Haulers Reinforced . | . . . Active Scanning Responses . | . . . Cargo Convoy Interrupts . | . . . Stealth | -11 -10 -10 --------- Run | Yrd Mat Min Distress Signals 3 | . 3 . Communications Jammed . | . . . Distress Signals . | . . . Times Spotted 14 | . 9 5 Peak Tracking Total 5 | . 5 5 Tactical Retreats . | . . . Traps | -11 -10 -10 ------- Run | Yrd Mat Min Traps Triggered 3 | . 3 . Indirectly . | . . . Trap Hack Attempts . | . . . Triggered . | . . . Disarmed . | . . . Reprogrammed . | . . . Reused . | . . . Traps Extracted . | . . . Installed . | . . . Triggered . | . . . Machines | -11 -10 -10 ---------- Run | Yrd Mat Min Machines Disabled . | . . . Max in Single Turn . | . . . Machines Repaired . | . . . Machines Dismantled . | . . . Machines Sabotaged . | . . . Overloaded Fab Kills . | . . . Hacking | -11 -10 -10 --------- Run | Yrd Mat Min Machines Accessed 3 | . 3 . Terminals 2 | . 2 . Fabricators . | . . . Repair Stations . | . . . Recycling Units 1 | . 1 . Scanalyzers . | . . . Garrison Access . | . . . Total Hacks 8 | . 8 . Successful 6 | . 6 . Failed 2 | . 2 . Catastrophic 2 | . 2 . Database Lockouts . | . . . Manual 3 | . 3 . Terminals 4 | . 4 . Fabricators . | . . . Repair Stations . | . . . Recycling Units 4 | . 4 . Scanalyzers . | . . . Garrison Access . | . . . Terminal Hacks 2 | . 2 . Record 1 | . 1 . Patrol Status 1 | . 1 . Fabricator Hacks . | . . . Repair Station Hacks . | . . . Recycling Unit Hacks 4 | . 4 . Recycle Component 2 | . 2 . Process 1 | . 1 . Retrieve Components 1 | . 1 . Scanalyzer . | . . . Garrison Access Hacks . | . . . Unauthorized Hacks . | . . . Terminals . | . . . Fabricators . | . . . Repair Stations . | . . . Recycling Units . | . . . Scanalyzers . | . . . Garrison Access . | . . . Data Cores Recovered . | . . . Used . | . . . Hacking Detections 1 | . 1 . Full Trace Events . | . . . Feedback Events . | . . . Feedback Blocked . | . . . Robot Schematics Acquired . | . . . Robots Built . | . . . Authchips . | . . . Time . | . . . Total Robot Build Rating . | . . . Part Schematics Acquired . | . . . Parts Built . | . . . Authchips . | . . . Time . | . . . Total Part Build Rating . | . . . Parts Repaired . | . . . Time . | . . . Parts Recycled 2 | . 2 . Recycled Matter 2 | . 2 . Retrieved Matter . | . . . Retrieved Components 2 | . 2 . Parts Scanalyzed . | . . . Part Schematics Acquired . | . . . Parts Damaged . | . . . Bothacking | -11 -10 -10 ------------ Run | Yrd Mat Min Used RIF Installer . | . . . Robots Hacked . | . . . Non-combat . | . . . Combat . | . . . Robot Hacks Applied . | . . . Relay Couplers Released . | . . . Fabnet Peak Effective % . | . . . Robots Rewired . | . . . Allies Hacked . | . . . Hacks Repelled . | . . . Allies | -11 -10 -10 -------- Run | Yrd Mat Min Total Allies . | . . . Largest Group . | . . . Highest-Rated Group . | . . . Highest-Rated Ally . | . . . Total Orders . | . . . Ally Attacks . | . . . Total Damage . | . . . Kills . | . . . Allies Corrupted . | . . . Allies Melted . | . . . Intel | -11 -10 -10 ------- Run | Yrd Mat Min Active Infowar (turns) 118 | . 63 55 Structural 118 | . 63 55 Robot Analysis Total . | . . . Derelict Logs Recovered . | . . . Drone Launches . | . . . Drone Recoveries . | . . . Exploration | -11 -10 -10 ------------- Run | Yrd Mat Min Turns Passed 425 | 74 294 57 Spaces Moved 273 | 61 186 26 Core 19 | 15 . 4 Treads . | . . . Legs 117 | 46 71 . Wheels . | . . . Hover 137 | . 115 22 Flight . | . . . Fastest Speed 50 | 50 120 100 Average Speed 129 | 102 132 167 Slowest Speed 190 | 120 190 180 Overloaded Moves . | . . . Propulsion Burnouts . | . . . Robots Hopped . | . . . Potential Cave-ins . | . . . Cave-ins Triggered . | . . . Exploration Rate (%) 17 | 4 38 10 Regions Visited 2 Branch Regions 1 Pre-discovered Areas . | . . . Known Exits Taken . | . . . Unknown Exits Taken 2 | 1 1 . Scrap Searched . | . . . Spaces Dug . | . . . Terrain Destroyed . | . . . Melee . | . . . Projectile . | . . . AOE . | . . . Terrain Rammed . | . . . Walls Destroyed . | . . . Machines Disabled . | . . . Actions | -11 -10 -10 --------- Run | Yrd Mat Min Total 311 | 71 207 33 Wait . | . . . Move 271 | 60 185 26 Hop . | . . . Pick Up 6 | 5 1 . Fast Attach 4 | 3 1 . Attach 3 | 3 . . Detach 2 | . 2 . Swap 1 | . 1 . Drop 3 | . 3 . Fire 21 | . 14 7 Melee . | . . . Ram . | . . . Kick . | . . . Crush . | . . . Escape Stasis . | . . . Rewire . | . . . Trap . | . . . Miscellaneous . | . . . Route ------- -11/Scrapyard -10/Materials (discovered 3 exits: [*Mat] / [*Min x2]) -10/Mines History --------- Turn | Location | Event 4 | -11/Scrapyard | Discovered new exit (range 15) 75 | -11/Scrapyard | Entered Materials 189 | -10/Materials | Core integrity fell below 50% 242 | -10/Materials | Discovered new exit (range 8) 267 | -10/Materials | Discovered new exit (range 8) 327 | -10/Materials | Build established: Mutant 335 | -10/Materials | Discovered new exit (range 14) 369 | -10/Materials | Entered Mines 382 | -10/Mines | Met a Derelict bent on vengeance 388 | -10/Mines | Assembled infested the area 418 | -10/Mines | Core integrity fell below 20% 426 | -10/Mines | Destroyed by as-11195 with Assembled Heavy Rifle Last Messages --------------- 00339_ Triggered Alarm Trap. 00339_ An alarm sounds. 00339_ ALERT: Alarm triggered, dispatching investigation squad. 00344_ U-05 Engineer lays Concrete. 00347_ W-16 Scout sends out distress signal. 00361_ U-05 Engineer destroyed. 00362_ K-01 Serf collects debris. 00363_ W-16 Scout sends out distress signal. 00365_ K-01 Serf collects debris. LOCATION=UNKNOWN GOAL=ESCAPE 00370_ System corrupted: Heat flow error (+213). 00388_ ALERT: Infestation in the mines, dispatching Demolisher response squad. 00405_ System corrupted: Matter fused (-8). 00411_ Ion Engine destroyed. 00413_ as-95593 suffers critical hit (Burn). 00422_ Hover Unit destroyed. 00423_ Med. Laser destroyed. 00424_ Structural Scanner destroyed. Map ----- +----------------------------------------------------+ | ???????????????????????????????? | | ???????????????????????????????? | | ???????????????????????????????? | | ???????????????????????????????? | | ???????????????????????????????? | | ??######???????????????????????? | | ??######???????????????????????? | | ??# ???????????????????????? | | ??? ????????????????????????? | | ??? ????????????????????????? | | ??# ????????????????????????? | | ??## ????????????????????????? | | ??## ????????????????????????? | | ??## ????????????????????????? | | ??## #???????????????????????? | | ??## ##???????????????????????? | | ??##a$##???????????????????????? | | ??## a##???????????????????????? | | ??## a##???????????????????????? | | ??## ###??????????????????????? | | ??## #######??????????????????? | | ??## #######?????????????????? | | ??### ## ###?????????????????? | | ??### # ###????????????????? | | ???## ####???????????????? | | ???## @ ###???????????????? | | ???##### ##???????????????? | | ???###### ##???????????????? | | ??????#### ###???????????????? | | ??????#### #######????????????? | | ???###### #########??????????? | | ???##### #####?????????? | | ??### ###?????????? | | ??## #### ##?????????? | | ??## ###### ? # | | ??## ######## ## | | ??## #???##### ## ### | | ??### ##?????######### #### | | ??########??????#######??? ####? | | ???######?????????????????####?? | | ???????????????????????????????? | | | | | | | | | | | | | | | | | | | +----------------------------------------------------+ Best States ------------- Heat Dissipation 25 Energy Generation 10 Energy Capacity 250 Matter Stores 206 Matter Capacity 300 Sight Range 16 Terrain Scan Density 10 Evasion (%) 55 Item Schematics ----------------- None Robot Schematics ------------------ None Fabricated ------------ Nothing Repaired ---------- Nothing Alien Tech Used ----------------- None Achievements -------------- None Challenges ------------ None Game ------ Seed RecoilIonicSink Manual? 0 Play Time 00:06:01 Cumulative 2.8 hours Start 2025.10.14 @ 02:25:41 End 2025.10.14 @ 02:31:17 Sessions 1 Manual Loads 0 Difficulty Rogue Special Mode None Game No. 6 Rogue 6 Adventurer 0 Explorer 0 Win Type - Total 0 Types 0/0/0/0/0/0/0/0/0/0 Lore% 0 Gallery% 5 Achievement% 5 Wizard Run 0 Options --------- Layout 1 ASCII 0 Keyboard 1 Movement Numpad Keybinds 0 Fullscreen 0 Font 28/SmallcapsGlow Map View 77x35 Zoom Use 0% Tactical HUD 1 Map Filters NONE Filters NONE Steam 1 RUN: cd7d758a-178a-4464-9c6a-2e227db94973